bitfinex/quotes_ETHUSD_20250319
["timestamp","ask_amount","ask_price","bid_price","bid_amount"]
[1742370113435,4.51157553,1937.6,1937.5,5.16129]
[1742370113975,4.51157553,1937.6,1937.4,5.16155]
[1742370114283,0.0645151,1937.8,1937.5,5.16129]
[1742370114484,1.71206737,1937.8,1937.5,5.16129]
[1742370114653,6.87258737,1937.8,1937.5,5.16129]
[1742370114975,4.51157553,1937.6,1937.4,5.16155]
[1742370115185,4.51157553,1937.5,1937.3,5.16178]
[1742370115368,4.51157553,1937.4,1937.3,5.16178]
[1742370115569,4.51157553,1937.4,1937.2,11.83848845]
[1742370115941,4.51157553,1937.4,1937.2,11.00798845]
[1742370116321,4.51157553,1937.3,1937.2,1.03005845]
[1742370116524,4.51157553,1937.3,1937.1,5.16227]
[1742370116722,4.51157553,1937.2,1937.1,5.16227]
[1742370117137,4.51157553,1937.2,1937.1,5.16235]
[1742370117836,4.51157553,1937.3,1937.1,5.95555]
[1742370118025,0.45115755,1937.4,1937.1,5.95555]
[1742370118026,4.96273308,1937.4,1937.2,5.16208]
[1742370118404,4.96273308,1937.4,1937.2,10.32403]
[1742370118605,4.51157553,1937.4,1937.3,5.16182]
[1742370120273,4.51157553,1937.5,1937.3,5.16166]
[1742370120472,4.51157553,1937.4,1937.2,10.32403]
[1742370120640,5.16116,1937.6,1937.3,5.16178]
[1742370120845,4.51157553,1937.4,1937.3,5.16178]
[1742370122484,4.51157553,1937.4,1937.2,5.16195]
[1742370122758,4.51157553,1937.3,1937.2,5.1619]
[1742370123148,4.51157553,1937.4,1937.3,5.1617]
[1742370125359,4.51157553,1937.5,1937.4,5.16138]
[1742370127937,4.51157553,1937.5,1937.2,5.16184]
[1742370127938,5.32537553,1937.5,1937.2,5.16184]
[1742370128160,4.51157553,1937.3,1937.2,5.16184]
[1742370128545,7.62191227,1937.8,1937.4,5.16155]
[1742370128758,4.51157553,1937.5,1937.4,5.16155]
[1742370128939,4.51157553,1937.6,1937.5,5.1611]
[1742370130644,4.51157553,1937.6,1937.4,6.18138548]
[1742370130854,6.03899626,1937.8,1937.4,6.18138548]
[1742370130855,4.51157553,1937.5,1937.4,6.18138548]
[1742370131742,4.51157553,1937.6,1937.5,5.16105]
[1742370132169,4.51157553,1937.7,1937.5,5.16105]
[1742370132484,0.8138,1937.8,1937.6,5.16085]
[1742370132639,4.96273308,1937.9,1937.6,5.16085]
[1742370133376,0.7607,1938.0,1937.8,5.16039]
[1742370133685,4.51157553,1937.9,1937.8,5.1603]
[1742370134143,4.51157553,1938.0,1937.8,5.1603]
[1742370134336,4.51157553,1937.9,1937.8,5.1603]
[1742370136880,5.27227553,1937.9,1937.7,1.02917743]
[1742370137042,10.19931308,1937.8,1937.5,5.16125]
[1742370137384,4.51157553,1937.6,1937.5,6.18215014]
[1742370138180,4.51157553,1937.7,1937.5,11.34328014]
[1742370138738,4.51157553,1937.7,1937.6,5.16102]
[1742370139482,4.51157553,1937.7,1937.5,1.02090014]
[1742370139643,5.53150784,1937.7,1937.5,6.18213014]
[1742370140042,4.51157553,1937.7,1937.5,6.18213014]
[1742370141376,4.51157553,1937.7,1937.5,11.34330014]
[1742370141575,4.51157553,1937.7,1937.5,6.18207014]
[1742370141804,4.51157553,1937.6,1937.5,1.02090014]
[1742370142095,5.27227553,1937.9,1937.5,6.18198014]
[1742370142373,6.31549908,1937.9,1937.6,5.16093]
[1742370143056,4.51157553,1937.8,1937.6,5.16093]
[1742370146376,4.51157553,1937.7,1937.5,6.18211014]
[1742370146675,4.51157553,1937.6,1937.5,5.16121]
[1742370146882,4.51157553,1937.7,1937.5,5.16121]
[1742370147676,4.51157553,1937.8,1937.5,5.16113]
[1742370147879,4.51157553,1937.7,1937.5,10.32227]
[1742370149182,4.51157553,1937.7,1937.6,5.16102]
[1742370149381,6.96425355,1937.9,1937.6,10.32188]
[1742370149382,4.51157553,1937.8,1937.6,10.32188]
[1742370149588,4.51157553,1937.8,1937.6,5.16086]
[1742370149763,4.51157553,1937.8,1937.6,10.3217]
[1742370150655,4.51157553,1937.7,1937.6,5.16084]
[1742370151252,5.14312544,1937.8,1937.6,10.32165]
[1742370151454,1.80392355,1937.9,1937.7,5.16075]
[1742370151656,4.51157553,1937.8,1937.7,5.16075]
[1742370151963,4.51157553,1937.9,1937.7,10.32131]
[1742370153087,4.51157553,1938.3,1938.1,5.15956]
[1742370153288,0.45115755,1938.2,1938.1,5.15956]
[1742370153484,4.51157553,1938.3,1938.1,5.15956]
[1742370154280,4.51157553,1938.2,1938.1,5.15956]
[1742370154678,4.51157553,1938.3,1938.1,5.15956]
[1742370154982,4.51157553,1938.3,1938.2,5.15942]
[1742370155181,4.51157553,1938.3,1938.1,10.3191]
[1742370155590,4.51157553,1938.3,1938.1,10.31911]
[1742370155787,4.51157553,1938.3,1938.1,5.15951]
[1742370155987,4.51157553,1938.2,1937.9,5.16018]
[1742370156187,4.51157553,1938.0,1937.9,5.16018]
[1742370156891,4.51157553,1938.2,1937.9,5.16001]
[1742370157090,4.51157553,1938.2,1938.0,5.15995]
[1742370157472,5.33397553,1938.3,1938.1,5.15958]
[1742370157772,4.51157553,1938.2,1938.1,5.15958]
[1742370157976,4.51157553,1938.2,1938.0,5.15978]
[1742370158282,4.51157553,1938.1,1937.9,5.16022]
[1742370158595,4.51157553,1938.1,1938.0,5.15987]
[1742370158793,4.51157553,1938.2,1938.0,5.15987]
[1742370158994,4.51157553,1938.1,1938.0,5.15987]
[1742370159196,4.51157553,1938.1,1937.9,5.16002]
[1742370159399,4.51157553,1938.1,1938.0,5.15995]
[1742370160169,4.51157553,1938.2,1938.0,10.31968]
[1742370160368,4.51157553,1938.4,1938.2,5.15942]
[1742370160783,4.51157553,1938.3,1938.1,5.15969]
[1742370161101,4.51157553,1938.2,1938.1,5.15969]
[1742370161397,4.51157553,1938.2,1937.9,5.16018]
[1742370161600,4.51157553,1938.0,1937.9,5.16018]
[1742370161798,4.51157553,1938.0,1937.7,5.16067]
[1742370162097,4.51157553,1937.9,1937.7,10.32119]
[1742370162403,4.51157553,1937.8,1937.7,5.16052]
[1742370164819,4.51157553,1937.8,1937.7,6.18389849]
[1742370165016,4.51157553,1937.8,1937.7,5.16052]
[1742370165219,4.51157553,1937.8,1937.6,6.19505674]
[1742370165904,4.51157553,1937.8,1937.6,5.16092]
[1742370166488,5.05051414,1937.8,1937.5,5.16126]
[1742370166679,4.51157553,1937.6,1937.5,5.16126]
[1742370168577,4.51157553,1937.7,1937.5,10.32229]
[1742370168792,5.97372,1937.9,1937.5,5.16103]
[1742370168793,4.51157553,1937.6,1937.5,5.16103]
[1742370169077,4.51157553,1937.6,1937.4,12.15060535]
[1742370169300,4.51157553,1937.5,1937.4,6.98907535]
[1742370169508,4.51157553,1937.6,1937.5,5.16129]
[1742370170877,4.51157553,1937.6,1937.4,6.21597535]
[1742370171078,4.51157553,1937.5,1937.4,6.21597535]
[1742370171924,4.51157553,1937.5,1937.4,1.05451535]
[1742370172281,4.51157553,1937.5,1937.3,5.16171]
[1742370172486,4.51157553,1937.4,1937.3,5.16171]
[1742370173026,4.51157553,1937.4,1937.3,6.1747834]
[1742370173416,5.32487553,1937.4,1937.2,17.848]
[1742370173594,4.51157553,1937.3,1937.2,17.848]
[1742370174781,5.97474,1937.5,1937.2,17.848]
[1742370175002,4.51157553,1937.3,1937.2,17.848]
[1742370175894,4.51157553,1937.3,1937.1,6.19254287]
[1742370176095,4.51157553,1937.2,1937.1,6.19254287]
[1742370176987,4.51157553,1937.2,1937.1,1.03035287]
[1742370177584,10.48680553,1937.2,1936.9,4.836]
[1742370177783,4.51157553,1937.0,1936.9,4.836]
[1742370178014,4.51157553,1937.0,1936.9,9.99886]
[1742370178317,4.51157553,1937.0,1936.9,5.16286]
[1742370178520,4.51157553,1937.0,1936.9,9.99786]
[1742370179785,4.51157553,1937.1,1936.9,9.99786]
[1742370180522,4.51157553,1937.0,1936.9,11.01540548]
[1742370181139,4.51157553,1937.0,1936.9,5.85254548]
[1742370181621,4.51157553,1937.0,1936.9,11.01542548]
[1742370181827,4.51157553,1937.0,1936.9,5.85254548]
[1742370182125,4.51157553,1937.0,1936.9,1.01754548]
[1742370184417,4.51157553,1937.0,1936.9,6.18042548]
[1742370184818,4.51157553,1937.0,1936.9,1.01754548]
[1742370185019,0.813,1937.6,1936.9,6.95307548]
[1742370185225,4.51157553,1937.4,1937.3,5.16178]
[1742370185427,4.51157553,1937.4,1937.2,10.7687]
[1742370186220,4.51157553,1937.4,1937.2,11.7846049]
[1742370186802,4.51157553,1937.4,1937.2,6.6226949]
[1742370187132,4.51157553,1937.4,1937.3,5.16182]
[1742370187329,9.67322553,1937.4,1937.2,6.6226949]
[1742370187531,4.51157553,1937.4,1937.2,5.8499949]
[1742370187733,4.51157553,1937.4,1937.2,4.834]
[1742370188033,4.51157553,1937.4,1937.2,9.99593]
[1742370189830,4.51157553,1937.4,1937.2,5.16193]
[1742370190051,4.51157553,1937.4,1937.3,5.16182]
[1742370190551,4.51157553,1937.4,1937.3,5.95422]
[1742370190706,5.16082,1937.7,1937.3,11.11588]
[1742370190907,4.51157553,1937.4,1937.3,11.11588]
[1742370192038,4.51157553,1937.5,1937.4,5.16155]
[1742370192247,4.51157553,1937.6,1937.5,5.16112]
[1742370192452,4.51157553,1937.7,1937.5,5.16112]
[1742370192610,4.51157553,1937.6,1937.4,5.16155]
[1742370192935,4.51157553,1937.5,1937.4,5.16155]
[1742370193115,4.51157553,1937.5,1937.3,5.95417]
[1742370193116,4.51157553,1937.5,1937.3,5.16179]
[1742370193540,4.51157553,1937.4,1937.3,5.16179]
[1742370193917,4.51157553,1937.5,1937.4,5.16155]
[1742370194922,4.51157553,1937.5,1937.3,5.16158]
[1742370195122,4.51157553,1937.5,1937.3,10.32323]
[1742370195323,4.51157553,1937.5,1937.4,5.16155]
[1742370198047,4.51157553,1937.5,1937.4,6.20768983]
[1742370198416,4.51157553,1937.5,1937.4,1.04613983]
[1742370198617,5.31807553,1937.5,1937.3,5.16177]
[1742370199013,5.31807553,1937.5,1937.3,6.20065713]
[1742370199213,5.55948808,1937.5,1937.4,5.16155]
[1742370199546,4.51157553,1937.5,1937.3,6.20064713]
[1742370200465,5.9673,1937.7,1937.3,6.20064713]
[1742370200466,4.51157553,1937.6,1937.3,6.20058713]
[1742370200746,4.51157553,1937.6,1937.3,6.20062713]
[1742370201543,4.51157553,1937.6,1937.3,11.36228713]
[1742370201746,4.51157553,1937.6,1937.3,6.20054713]
[1742370201971,4.51157553,1937.4,1937.3,1.03888713]
[1742370203550,5.31807553,1937.4,1937.3,1.03888713]
[1742370203845,10.47962553,1937.4,1937.3,1.03888713]
[1742370204239,10.47962553,1937.4,1937.0,9.98754]
[1742370204439,4.51157553,1937.2,1937.0,9.98754]
[1742370204851,4.51157553,1937.2,1937.0,5.16254]
[1742370205230,4.51157553,1937.2,1937.0,6.19966823]
[1742370205946,4.51157553,1937.2,1937.0,6.19956823]
[1742370206153,4.51157553,1937.3,1937.1,5.16235]
[1742370206727,4.51157553,1937.3,1937.0,6.19967823]
[1742370207069,5.55954308,1937.3,1937.0,6.19967823]
[1742370207569,10.44609553,1937.1,1936.8,17.849]
[1742370207719,4.51157553,1936.9,1936.8,17.849]
[1742370210366,4.51157553,1937.0,1936.8,23.01215]
[1742370210563,0.772,1937.1,1936.9,5.16288]
[1742370210881,5.28357553,1937.3,1937.1,5.16235]
[1742370211060,5.93334,1937.5,1937.1,5.16235]
[1742370211441,4.51157553,1937.2,1937.1,5.16235]
[1742370211636,5.16155,1937.4,1937.1,0.7767]
[1742370211840,4.51157553,1937.3,1937.1,5.93905]
[1742370212150,4.51157553,1937.3,1937.0,5.16246]
[1742370212557,4.51157553,1937.2,1937.0,5.16246]
[1742370212947,4.51157553,1937.2,1937.0,10.32487]
[1742370213353,4.51157553,1937.2,1937.0,5.16241]
[1742370213671,4.51157553,1937.2,1937.0,6.1806746]
[1742370214073,4.51157553,1937.3,1937.0,6.1806646]
[1742370214232,4.51157553,1937.2,1937.0,6.1806646]
[1742370215251,4.51157553,1937.2,1937.1,5.16235]
[1742370215452,4.51157553,1937.3,1937.1,5.16235]
[1742370215940,4.51157553,1937.3,1937.0,6.1806646]
[1742370215941,4.51157553,1937.4,1937.2,10.32399]
[1742370216172,4.51157553,1937.4,1937.2,5.16191]
[1742370216366,4.51157553,1937.5,1937.3,5.16168]
[1742370216573,4.51157553,1937.5,1937.3,5.16172]
[1742370216795,4.51157553,1937.5,1937.3,10.32335]
[1742370216953,4.51157553,1937.4,1937.3,5.16163]
[1742370217886,4.51157553,1937.4,1937.2,5.16207]
[1742370218081,4.51157553,1937.3,1937.2,5.16207]
[1742370218565,4.51157553,1937.4,1937.3,5.16179]
[1742370218754,4.51157553,1937.4,1937.2,5.16205]
[1742370218956,4.51157553,1937.4,1937.2,10.32393]
[1742370219155,4.51157553,1937.4,1937.2,5.16188]
[1742370220691,4.51157553,1937.4,1937.3,5.16182]
[1742370225211,4.51157553,1937.4,1937.2,5.16188]
[1742370225375,4.51157553,1937.3,1937.2,10.32384]
[1742370225574,0.8191,1937.5,1937.3,5.16177]
[1742370225779,4.51157553,1937.4,1937.3,5.16177]
[1742370228423,4.51157553,1937.4,1937.3,6.21396046]
[1742370230527,4.51157553,1937.5,1937.3,6.21396046]
[1742370230673,4.51157553,1937.5,1937.4,5.16155]
[1742370233011,4.51157553,1937.5,1937.3,6.21396046]
[1742370234284,4.51157553,1937.5,1937.3,6.21382046]
[1742370234485,4.51157553,1937.5,1937.3,11.37547046]
[1742370234804,4.51157553,1937.5,1937.3,6.21382046]
[1742370236494,4.51157553,1937.5,1937.3,1.05219046]
[1742370236702,4.51157553,1937.5,1937.3,6.21398046]
[1742370236882,4.51157553,1937.5,1937.3,1.05219046]
[1742370237083,6.27503908,1937.5,1937.3,1.05219046]
[1742370237283,6.27503908,1937.5,1937.2,5.162]
[1742370237514,4.51157553,1937.3,1937.1,1.04114606]
[1742370237817,4.51157553,1937.3,1937.0,10.32489]
[1742370238003,4.51157553,1937.3,1937.0,5.16242]
[1742370238406,11.5014583,1937.3,1937.0,1.04269815]
[1742370238601,11.5014583,1937.3,1936.9,5.98894]
[1742370238602,4.51157553,1937.1,1936.9,5.16277]
[1742370238918,0.7962,1937.0,1936.9,1.05532187]
[1742370239212,5.30777553,1937.1,1936.9,1.05532187]
[1742370239719,5.30777553,1937.1,1936.8,23.0121]
[1742370240220,10.47016553,1937.1,1936.8,17.849]
[1742370240726,5.30777553,1937.1,1936.8,23.01201]
[1742370241025,4.51157553,1937.0,1936.8,23.01201]
[1742370241322,4.51157553,1937.0,1936.8,17.849]
[1742370241712,5.95855,1937.1,1936.8,17.849]
[1742370241713,4.51157553,1936.9,1936.8,17.849]
[1742370241911,5.30777553,1937.1,1936.8,17.849]
[1742370242087,5.06157553,1937.2,1936.9,5.16264]
[1742370242618,6.26027264,1937.2,1936.9,5.16264]
[1742370242988,4.51157553,1937.1,1936.8,24.06586977]
[1742370243186,5.30777553,1937.0,1936.8,17.849]
[1742370243392,5.30777553,1937.0,1936.6,18.2629387]
[1742370243393,4.51157553,1936.9,1936.6,18.2629387]
[1742370243820,4.51157553,1936.9,1936.6,10.4419387]
[1742370244121,4.51157553,1936.9,1936.7,5.16328]
[1742370245328,10.47043553,1937.0,1936.7,5.16328]
[1742370245624,10.47043553,1937.0,1936.7,10.32653]
[1742370245625,5.30777553,1937.0,1936.7,10.32653]
[1742370246291,5.30777553,1937.0,1936.7,5.16325]
[1742370246526,4.51157553,1936.9,1936.7,5.16325]
[1742370247116,4.51157553,1936.9,1936.6,6.33718518]
[1742370247290,4.51157553,1936.9,1936.6,11.50069518]
[1742370247706,5.30777553,1936.7,1936.6,0.1148587]
[1742370247902,10.53573782,1936.7,1936.6,0.1148587]
[1742370248127,10.47119553,1936.7,1936.6,0.1148587]
[1742370249128,5.30777553,1936.7,1936.6,0.1148587]
[1742370249330,10.47119553,1936.7,1936.6,0.1148587]
[1742370249500,12.03463208,1936.7,1936.6,0.1148587]
[1742370253934,6.87121208,1936.7,1936.6,0.1148587]
[1742370254128,5.30777553,1936.7,1936.6,0.1148587]
[1742370254513,4.51157553,1936.7,1936.6,5.2785387]
[1742370254923,4.51157553,1936.7,1936.6,0.1148587]
[1742370256652,4.51157553,1936.7,1936.6,5.2785387]
[1742370257542,4.51157553,1936.8,1936.6,0.1148587]
[1742370257736,4.51157553,1936.9,1936.8,5.16314]
[1742370257941,4.51157553,1937.0,1936.8,6.275246]
[1742370258155,4.51157553,1936.9,1936.8,6.275246]
[1742370264839,4.51157553,1937.0,1936.9,5.16286]
[1742370265444,0.7725,1937.3,1937.2,5.16208]
[1742370265629,0.766,1937.5,1937.2,5.16193]
[1742370265830,0.766,1937.5,1937.3,5.16172]
[1742370266525,0.766,1937.5,1937.3,5.16164]
[1742370267635,0.766,1937.7,1937.5,5.16105]
[1742370268153,4.51157553,1937.7,1937.6,5.16102]
[1742370268357,0.766,1937.9,1937.7,5.16059]
[1742370268528,0.766,1937.9,1937.8,5.16049]
[1742370268731,5.27757553,1937.9,1937.8,5.16049]
[1742370269039,4.51157553,1937.9,1937.8,5.16049]
[1742370269252,4.51157553,1937.9,1937.7,5.16068]
[1742370269434,4.51157553,1937.8,1937.7,5.16068]
[1742370274528,0.766,1938.1,1937.9,5.16014]
[1742370274729,4.51157553,1938.0,1937.9,5.16022]
[1742370274929,0.766,1938.3,1938.0,5.15994]
[1742370275127,4.51157553,1938.1,1938.0,5.15994]
[1742370275760,0.766,1938.5,1938.1,5.15957]
[1742370275929,4.51157553,1938.2,1938.1,5.15957]
[1742370282038,4.51157553,1938.3,1938.2,5.15928]
[1742370282267,4.51157553,1938.4,1938.3,5.15896]
[1742370282450,4.51157553,1938.5,1938.4,5.15876]
[1742370284075,4.51157553,1938.6,1938.5,5.15848]
[1742370284957,4.51157553,1938.6,1938.4,0.822]
[1742370285157,4.51157553,1938.5,1938.4,5.15889]
[1742370285558,5.32097553,1938.5,1938.2,5.15939]
[1742370285788,4.51157553,1938.3,1938.2,5.15939]
[1742370290183,4.51157553,1938.3,1938.1,6.21872986]
[1742370290372,4.51157553,1938.2,1938.1,5.15968]
[1742370297189,4.51157553,1938.2,1938.1,6.20453252]
[1742370298799,4.51157553,1938.3,1938.2,5.1592]
[1742370302067,4.51157553,1938.3,1938.1,11.36407252]
[1742370302267,4.51157553,1938.2,1938.1,10.31922]
[1742370302771,9.67112553,1938.2,1937.8,12.9763]
[1742370303082,4.51157553,1938.0,1937.8,12.9763]
[1742370303289,6.43541755,1938.6,1938.2,5.15921]
[1742370303475,4.51157553,1938.4,1938.3,5.15904]
[1742370304032,4.51157553,1938.5,1938.3,10.31804]
[1742370304203,4.50097063,1938.5,1938.4,5.15889]
[1742370304384,4.51157553,1938.5,1938.3,5.15903]
[1742370304574,4.51157553,1938.4,1938.3,5.15903]
[1742370305075,0.8259,1938.6,1938.4,5.15872]
[1742370305076,4.51157553,1938.5,1938.4,5.15872]
[1742370305791,4.51157553,1938.5,1938.2,9.97939]
[1742370305995,4.51157553,1938.3,1938.2,9.97924]
[1742370306810,4.51157553,1938.3,1938.2,4.82]
[1742370307374,4.51157553,1938.3,1938.1,6.17189018]
[1742370307568,4.51157553,1938.2,1938.1,1.01237018]
[1742370308006,4.51157553,1938.2,1938.1,6.17206018]
[1742370310192,4.51157553,1938.3,1938.2,5.15941]
[1742370310391,4.51157553,1938.3,1938.1,6.17206018]
[1742370310585,4.51157553,1938.2,1938.1,6.17206018]
[1742370311830,0.8259,1938.4,1938.3,5.15916]
[1742370312011,4.51157553,1938.5,1938.2,5.1593]
[1742370312190,4.51157553,1938.4,1938.2,5.1593]
[1742370312390,4.51157553,1938.3,1938.2,5.15926]
[1742370312593,4.51157553,1938.3,1938.2,5.88148374]
[1742370314321,0.7926,1938.6,1938.2,5.88148374]
[1742370314498,4.51157553,1938.4,1938.3,5.1591]
[1742370316127,4.51157553,1938.4,1938.2,5.88148374]
[1742370316331,4.51157553,1938.3,1938.2,5.88148374]
[1742370317328,4.51157553,1938.3,1938.2,5.15926]
[1742370318233,5.30947553,1938.3,1938.1,6.17205018]
[1742370318428,4.51157553,1938.2,1938.1,6.17187018]
[1742370320315,4.51157553,1938.2,1938.0,5.15992]
[1742370320913,4.51157553,1938.2,1938.0,6.1783504]
[1742370321112,4.51157553,1938.2,1938.0,1.0184304]
[1742370322233,6.02220824,1938.1,1937.7,23.00268]
[1742370322440,4.51157553,1937.8,1937.7,23.00268]
[1742370322732,4.51157553,1937.8,1937.7,5.16068]
[1742370322945,4.51157553,1937.9,1937.7,6.20124345]
[1742370323104,4.51157553,1937.9,1937.8,5.16049]
[1742370323304,5.30947553,1938.1,1937.9,5.1602]
[1742370323911,5.30947553,1938.1,1937.9,10.32025]
[1742370324217,5.30947553,1938.1,1937.9,5.16005]
[1742370325134,4.51157553,1938.1,1938.0,5.15995]
[1742370325941,4.51157553,1938.4,1938.1,5.15952]
[1742370326238,4.51157553,1938.4,1938.2,5.15929]
[1742370326649,4.51157553,1938.3,1938.1,5.15952]
[1742370326818,4.51157553,1938.3,1937.9,5.16014]
[1742370326819,4.51157553,1938.2,1937.9,5.16014]
[1742370327028,4.51157553,1938.0,1937.9,5.16014]
[1742370327946,4.51157553,1938.1,1938.0,5.15981]
[1742370329842,4.51157553,1938.1,1937.9,6.19935892]
[1742370330043,4.51157553,1938.1,1937.9,11.35947892]
[1742370330343,0.8322,1938.0,1937.8,5.16046]
[1742370330541,4.51157553,1937.9,1937.8,5.16046]
[1742370331048,4.51157553,1937.9,1937.8,6.17425341]
[1742370333649,4.51157553,1938.1,1937.9,5.16022]
[1742370333944,4.51157553,1938.1,1938.0,5.15995]
[1742370334457,4.51157553,1938.1,1937.8,7.38406075]
[1742370334763,4.51157553,1937.9,1937.8,6.17415341]
[1742370341930,4.51157553,1937.9,1937.8,1.01379341]
[1742370342519,4.51157553,1937.9,1937.8,6.17428341]
[1742370342947,4.51157553,1937.9,1937.5,5.16117]
[1742370343134,4.51157553,1937.6,1937.5,5.16117]
[1742370343544,4.51157553,1937.6,1937.3,23.79438]
[1742370343545,4.51157553,1937.6,1937.4,6.17998143]
[1742370343749,4.51157553,1937.6,1937.4,1.01861143]
[1742370344049,4.51157553,1937.5,1937.4,1.01861143]
[1742370346254,5.33967553,1937.5,1937.4,1.01861143]
[1742370348427,10.50107553,1937.5,1937.3,17.845]
[1742370348628,5.53017553,1937.4,1937.1,9.99028]
[1742370348833,4.51157553,1937.2,1937.1,8.16228]
[1742370349772,4.51157553,1937.2,1937.1,9.17796318]
[1742370350275,0.8281,1937.5,1937.1,9.17796318]
[1742370350478,4.51157553,1937.3,1937.1,6.17796318]
[1742370350781,4.51157553,1937.3,1937.1,11.34015318]
[1742370350931,4.51157553,1937.3,1937.2,5.16208]
[1742370352060,4.51157553,1937.3,1937.1,1.01568318]
[1742370352361,5.33967553,1937.2,1937.1,1.01568318]
[1742370352563,10.566446,1937.2,1936.7,23.0094]
[1742370352739,4.51157553,1936.8,1936.7,17.846]
[1742370352941,4.51157553,1936.8,1936.6,0.1148587]
[1742370353146,4.51157553,1936.7,1936.6,0.1148587]
[1742370353666,4.51157553,1936.7,1936.6,1.13545058]
[1742370353963,4.51157553,1936.7,1936.6,6.29913058]
[1742370354150,4.51157553,1936.7,1936.6,1.13545058]
[1742370356087,9.7395399,1936.7,1936.6,1.13545058]
[1742370356370,9.7395399,1936.7,1936.6,0.1148587]
[1742370356371,11.61642507,1936.7,1936.6,0.1148587]
[1742370356766,12.42122507,1936.7,1936.6,0.1148587]
[1742370358782,12.42122507,1936.7,1936.6,5.87e-05]
[1742370361971,7.25780507,1936.7,1936.6,5.87e-05]
[1742370362183,5.31637553,1936.9,1936.7,5.16341]
[1742370362383,4.51157553,1936.8,1936.7,5.16341]
[1742370362994,4.51157553,1936.8,1936.6,5.87e-05]
[1742370363198,4.51157553,1936.7,1936.6,5.87e-05]
[1742370364184,9.67499553,1936.7,1936.6,5.87e-05]
[1742370364387,11.69044864,1936.7,1936.6,5.87e-05]
[1742370364910,6.52702864,1936.7,1936.6,5.87e-05]
[1742370365310,11.75499792,1936.7,1936.6,5.87e-05]
[1742370365509,6.52702864,1936.7,1936.6,5.87e-05]
[1742370366583,11.75499791,1936.7,1936.6,5.87e-05]
[1742370366784,11.69044864,1936.7,1936.6,5.87e-05]
[1742370367586,6.52702864,1936.7,1936.6,5.87e-05]
[1742370367787,4.51157553,1936.7,1936.6,5.87e-05]
[1742370369911,9.73954177,1936.7,1936.6,5.87e-05]
[1742370370098,4.51157553,1936.7,1936.6,5.87e-05]
[1742370370318,9.73954462,1936.7,1936.6,5.87e-05]
[1742370370609,9.67499553,1936.7,1936.6,5.87e-05]
[1742370370814,11.69046164,1936.7,1936.6,5.87e-05]
[1742370371212,6.52704164,1936.7,1936.6,5.87e-05]
[1742370371382,4.57612659,1936.7,1936.6,5.87e-05]
[1742370371578,4.51157553,1936.7,1936.6,5.87e-05]
[1742370374123,4.51157553,1936.7,1936.5,5.1139887]
[1742370374331,4.51157553,1936.6,1936.5,5.1139887]
[1742370374624,4.51157553,1936.6,1936.3,1.03607847]
[1742370374625,4.51157553,1936.6,1936.3,6.20050847]
[1742370374797,4.51157553,1936.5,1936.3,6.20037847]
[1742370374987,4.51157553,1936.5,1936.4,5.16422]
[1742370375600,4.51157553,1936.6,1936.5,5.16391]
[1742370376797,4.51157553,1936.6,1936.4,5.16422]
[1742370376998,4.51157553,1936.5,1936.4,5.16422]
[1742370377217,4.51157553,1936.5,1936.3,6.20048847]
[1742370377418,4.51157553,1936.5,1936.3,1.03607847]
[1742370377728,4.51157553,1936.5,1936.1,5.96554]
[1742370377729,4.51157553,1936.4,1936.1,5.96554]
[1742370378025,4.51157553,1936.4,1936.1,6.19928851]
[1742370378194,4.51157553,1936.4,1936.3,5.16448]
[1742370379611,4.51157553,1936.4,1936.2,5.95542]
[1742370379805,4.51157553,1936.4,1936.1,9.19921851]
[1742370380006,4.51157553,1936.4,1936.1,14.36408851]
[1742370380690,4.51157553,1936.4,1936.2,5.16471]
[1742370381128,4.51157553,1936.4,1936.3,5.16448]
[1742370382627,4.51157553,1936.4,1936.2,5.16467]
[1742370382852,4.51157553,1936.3,1936.2,5.16467]
[1742370382999,4.51157553,1936.3,1936.1,9.19916851]
[1742370383199,4.51157553,1936.2,1936.1,9.19916851]
[1742370386528,4.51157553,1936.2,1936.1,4.03426851]
[1742370386967,4.51157553,1936.2,1936.1,1.03426851]
[1742370387137,4.96273308,1936.2,1936.1,1.03426851]
[1742370389358,4.51157553,1936.2,1936.1,1.03426851]
[1742370389540,4.51157553,1936.2,1936.1,6.19928851]
[1742370389740,4.51157553,1936.2,1936.1,1.03426851]
[1742370390468,4.51157553,1936.2,1936.1,0.01]
[1742370393268,4.51157553,1936.2,1936.1,5.17502]
[1742370393461,4.51157553,1936.3,1936.1,5.17502]
[1742370393859,4.51157553,1936.2,1936.1,5.17502]
[1742370394387,4.51157553,1936.2,1936.1,0.01]
[1742370394886,4.51157553,1936.2,1936.1,5.17502]
[1742370397287,4.51157553,1936.2,1936.1,0.01]
[1742370399159,4.51157553,1936.2,1936.1,5.17502]
[1742370399588,4.51157553,1936.2,1936.1,5.97062]
[1742370400692,4.51157553,1936.2,1936.1,5.17502]
[1742370403885,5.29187553,1936.5,1936.3,5.16434]
[1742370404108,4.51157553,1936.5,1936.3,10.32865]
[1742370404311,5.94378,1936.7,1936.1,1.92365989]
[1742370404312,0.7803,1936.7,1936.4,10.32828]
[1742370404475,4.51157553,1936.8,1936.6,5.16349]
[1742370404992,0.7803,1936.9,1936.7,10.32672]
[1742370405181,4.51157553,1936.8,1936.7,5.1633]
[1742370405381,0.55476224,1937.0,1936.7,5.16328]
[1742370405582,4.51157553,1936.9,1936.8,5.16296]
[1742370406682,4.51157553,1936.9,1936.7,5.1634]
[1742370406883,4.51157553,1936.8,1936.7,5.1634]
[1742370409217,4.51157553,1936.9,1936.8,5.16311]
[1742370409431,5.6133,1937.1,1936.9,5.16287]
[1742370409638,4.51157553,1937.0,1936.9,5.16287]
[1742370410509,4.51157553,1937.0,1936.8,5.16311]
[1742370410710,4.51157553,1936.9,1936.8,5.16311]
[1742370415137,4.51157553,1936.9,1936.8,5.93841]
[1742370416240,4.51157553,1936.9,1936.8,5.16311]
[1742370419060,1.75406602,1937.3,1937.0,5.16252]
[1742370419260,4.51157553,1937.1,1937.0,5.16252]
[1742370420444,4.96273308,1937.1,1937.0,5.16252]
[1742370421319,4.51157553,1937.1,1937.0,5.16252]
[1742370421967,4.51157553,1937.1,1936.9,6.2040054]
[1742370422174,4.51157553,1937.0,1936.9,6.2040054]
[1742370423164,5.27117553,1937.0,1936.9,1.0412354]
[1742370423864,5.27117553,1937.0,1936.8,5.16297]
[1742370424164,9.73911016,1936.9,1936.5,5.16383]
[1742370424426,11.61214755,1937.0,1936.6,5.16359]
[1742370424706,6.44933755,1937.0,1936.6,5.16359]
[1742370424880,5.16299,1936.9,1936.5,5.16383]